bitfinex-derivatives/quotes_BTCF0:USTF0_20210104
["timestamp","ask_amount","ask_price","bid_price","bid_amount"]
[1609765301105,0.14813,31057.0,31044.0,0.31294]
[1609765301306,0.14813,31057.0,31056.0,0.13632608]
[1609765301906,0.14813,31057.0,31055.0,0.0963]
[1609765302107,0.14813,31057.0,31048.0,0.0978]
[1609765302308,0.14813,31057.0,31044.0,0.12114]
[1609765302505,0.14813,31057.0,31039.0,0.0954]
[1609765302506,3.8991,31053.0,31039.0,0.0954]
[1609765302705,3.8991,31053.0,31037.0,2.12315561]
[1609765302906,3.9668,31042.0,31037.0,2.12315561]
[1609765303109,3.9668,31042.0,31037.0,2.10465561]
[1609765303407,0.13632608,31038.0,31032.0,2.31683298]
[1609765304408,0.13632608,31038.0,31023.0,0.0967]
[1609765304608,0.0967,31037.0,31013.0,2.41205059]
[1609765304807,0.13632608,31038.0,31013.0,2.31425059]
[1609765305208,0.13632608,31038.0,31009.0,2.31442938]
[1609765305408,0.0956,31041.0,31009.0,2.31442938]
[1609765305610,0.0956,31041.0,31009.0,2.42867938]
[1609765305823,0.0956,31041.0,31013.0,0.13632608]
[1609765306009,0.0956,31041.0,31014.0,0.0963]
[1609765306409,0.0956,31041.0,31010.0,0.0975]
[1609765306608,0.0956,31041.0,31009.0,0.11425]
[1609765306808,3.9668,31042.0,31009.0,0.11425]
[1609765307209,0.09719,31043.0,31009.0,0.11425]
[1609765307510,3.9123,31067.0,31010.0,4.7459]
[1609765307710,0.11209,31066.0,31011.0,5.0653]
[1609765307910,0.10005689,31067.0,31011.0,5.0653]
[1609765308109,0.10005689,31067.0,31040.0,0.13632608]
[1609765308710,0.6869,31059.0,31038.0,0.11759]
[1609765308909,0.19659,31058.0,31038.0,0.11759]
[1609765309511,0.10109,31058.0,31038.0,0.11759]
[1609765309911,0.10109,31058.0,31015.0,0.0976]
[1609765310111,0.13632608,31022.0,31015.0,0.23392608]
[1609765310312,0.0954,31021.0,31015.0,0.23392608]
[1609765311412,0.0954,31021.0,31015.0,0.0976]
[1609765311812,3.14981177,32999.0,31015.0,0.0976]
[1609765312013,0.13632608,31022.0,31021.0,0.13632608]
[1609765312218,0.13632608,31022.0,31016.0,0.16093]
[1609765313314,0.096,31021.0,31017.0,0.0969]
[1609765316018,0.096,31021.0,31020.0,0.13632608]
[1609765316218,0.13632608,31022.0,31020.0,0.23242608]
[1609765317219,0.23322608,31022.0,31020.0,0.23242608]
[1609765317420,0.13632608,31022.0,31020.0,0.23242608]
[1609765317819,5.3946,31049.0,31020.0,0.0961]
[1609765318421,5.4915,31049.0,31023.0,0.13632608]
[1609765318620,5.4915,31049.0,31023.0,0.29747608]
[1609765319220,5.4915,31049.0,31023.0,0.16115]
[1609765319422,5.3946,31049.0,31023.0,0.16115]
[1609765320023,0.0973,31048.0,31024.0,0.0962]
[1609765320226,0.24064,31048.0,31024.0,0.0962]
[1609765320424,0.13632608,31025.0,31024.0,0.0962]
[1609765321327,5.46226,31034.0,31024.0,0.0962]
[1609765322326,0.13632608,31025.0,31024.0,0.0962]
[1609765322526,0.23372608,31025.0,31024.0,0.0962]
[1609765323428,0.23372608,31025.0,31016.0,0.16093]
[1609765323629,0.13632608,31025.0,31016.0,0.16093]
[1609765323830,0.13632608,31025.0,31012.0,0.097]
[1609765324330,0.13632608,31013.0,31012.0,0.097]
[1609765324532,0.13632608,31013.0,31002.0,0.13632608]
[1609765325631,0.13632608,31013.0,31002.0,0.23422608]
[1609765325831,0.0975,31012.0,31002.0,0.23422608]
[1609765326232,0.0972,31016.0,31002.0,0.23422608]
[1609765326433,0.0972,31016.0,31015.0,0.13632608]
[1609765326632,0.0959,31031.0,31015.0,0.13632608]
[1609765326832,0.13946,31034.0,31016.0,0.098]
[1609765327033,4.324,31052.0,31016.0,0.098]
[1609765327433,0.86037205,31077.0,31016.0,0.098]
[1609765327632,0.86037205,31077.0,31019.0,4.1768]
[1609765327834,0.00359651,31063.0,31019.0,4.1768]
[1609765328034,0.12769651,31063.0,31019.0,4.1768]
[1609765328232,0.0971,31062.0,31019.0,4.1768]
[1609765328433,0.0971,31062.0,31044.0,0.13632608]
[1609765328833,0.0971,31062.0,31026.0,0.0952]
[1609765329633,0.0971,31062.0,31032.0,0.6598]
[1609765329834,0.0971,31062.0,31033.0,0.0978]
[1609765330335,0.0971,31062.0,31041.0,0.13632608]
[1609765330536,0.0971,31062.0,31042.0,0.0965]
[1609765330734,0.1241,31063.0,31042.0,4.7457]
[1609765331335,0.1241,31063.0,31027.0,0.0961]
[1609765331736,0.1241,31063.0,31028.0,0.5621]
[1609765331937,0.0956,31062.0,31028.0,0.5621]
[1609765332636,0.13632608,31029.0,31028.0,0.5621]
[1609765332836,0.27049608,31029.0,31028.0,0.5621]
[1609765333036,0.27049608,31029.0,31023.0,0.13632608]
[1609765334737,0.13632608,31024.0,31023.0,0.23142608]
[1609765334938,0.23162608,31024.0,31023.0,0.0951]
[1609765335138,0.13632608,31024.0,31012.0,3.63]
[1609765336139,0.0958,31023.0,31013.0,0.0955]
[1609765336739,0.13632608,31016.0,31013.0,0.0955]
[1609765337141,0.09979,31018.0,31013.0,0.0955]
[1609765337340,0.09979,31018.0,31004.0,0.0967]
[1609765338241,0.0958,31017.0,31005.0,0.0967]
[1609765338743,0.09979,31018.0,31014.0,0.13632608]
[1609765339344,0.09979,31018.0,31004.0,0.0953]
[1609765339645,0.0971,31017.0,31004.0,0.0953]
[1609765339844,0.0971,31017.0,31005.0,0.0962]
[1609765340045,0.09979,31018.0,30994.0,0.13257]
[1609765340645,0.13632608,31003.0,31002.0,0.13632608]
[1609765341244,0.13632608,31003.0,31002.0,0.23162608]
[1609765342245,0.0977,31003.0,31002.0,0.23162608]
[1609765342845,0.13632608,31004.0,31002.0,0.23162608]
[1609765343247,0.13632608,31004.0,31002.0,0.13632608]
[1609765343646,0.09979,31018.0,30994.0,0.13257]
[1609765344047,0.5634,31017.0,30994.0,0.13257]
[1609765344248,0.14224,31017.0,30994.0,0.13257]
[1609765344447,4.3084,31016.0,30995.0,0.096]
[1609765344647,0.13632608,30996.0,30995.0,0.096]
[1609765344848,0.13632608,30996.0,30994.0,0.13257]
[1609765345250,0.13632608,30996.0,30986.0,2.12097469]
[1609765346251,0.0956,30995.0,30987.0,0.0979]
[1609765346453,0.0956,30995.0,30986.0,2.03357469]
[1609765346653,0.0956,30995.0,30983.0,2.41069057]
[1609765346654,0.0956,30995.0,30983.0,0.0969]
[1609765346853,0.13632608,30987.0,30983.0,0.0969]
[1609765347753,0.08514,30996.0,30983.0,0.0969]
[1609765348754,0.08514,30996.0,30995.0,0.13632608]
[1609765348955,0.18314,30996.0,30995.0,0.0964]
[1609765349154,0.08514,30996.0,30980.0,0.10705]
[1609765350758,0.13632608,30981.0,30980.0,0.10705]
[1609765351560,0.13632608,30981.0,30957.0,3.09560826]
[1609765351760,0.13632608,30981.0,30958.0,0.2743]
[1609765352562,0.13632608,30981.0,30970.0,2.2712627]
[1609765352761,0.13632608,30971.0,30970.0,2.2712627]
[1609765353361,0.13632608,30971.0,30968.0,0.13632608]
[1609765354763,0.13632608,30971.0,30952.0,2.51518415]
[1609765354963,5.48492608,30971.0,30952.0,2.51518415]
[1609765355564,5.48492608,30971.0,30951.0,2.61314009]
[1609765355763,5.3486,30971.0,30951.0,2.61314009]
[1609765356365,5.3486,30971.0,30951.0,2.51614009]
[1609765356764,5.3486,30971.0,30956.0,0.13632608]
[1609765357466,0.41787392,30954.0,30945.0,2.13254871]
[1609765357869,0.41787392,30954.0,30944.0,0.2768]
[1609765358469,0.41787392,30954.0,30938.0,2.13255715]
[1609765358872,0.41787392,30954.0,30946.0,0.13632608]
[1609765360873,0.13632608,30947.0,30946.0,0.13632608]
[1609765361974,0.74352608,30947.0,30937.0,0.12347]
[1609765362174,0.13632608,30947.0,30923.0,0.0969]
[1609765362373,5.2042,30937.0,30923.0,0.0969]
[1609765362773,5.2042,30937.0,30924.0,0.13632608]
[1609765362973,0.1341,30948.0,30925.0,0.0981]
[1609765363173,0.1341,30948.0,30924.0,0.10008]
[1609765363375,0.35797392,30954.0,30924.0,0.10008]
[1609765363573,0.35797392,30954.0,30925.0,0.098]
[1609765364979,0.35797392,30954.0,30931.0,0.10538]
[1609765365178,0.35797392,30954.0,30932.0,0.0968]
[1609765366278,0.16397392,30954.0,30939.0,4.2322]
[1609765366481,0.0958,30991.0,30939.0,4.33905]
[1609765366679,0.00346463,30995.0,30939.0,4.33905]
[1609765366978,0.41383417,30997.0,30939.0,4.33905]
[1609765367179,0.41383417,30997.0,30983.0,0.13632608]
[1609765367880,0.53307417,30997.0,30966.0,3.8591]
[1609765368080,0.11924,30997.0,30966.0,3.8591]
[1609765369380,0.11924,30997.0,30977.0,0.13632608]
[1609765369781,0.11924,30997.0,30966.0,3.6091]
[1609765371488,0.11924,30997.0,30970.0,0.13632608]
[1609765372088,0.11924,30997.0,30971.0,2.0]
[1609765372787,0.0952,31012.0,30971.0,2.0]
[1609765372987,5.2158,31013.0,30971.0,2.0]
[1609765373389,5.2158,31013.0,30984.0,0.13632608]
[1609765373788,0.2904,31027.0,30984.0,0.13632608]
[1609765375188,0.0962,31023.0,30984.0,0.13632608]
[1609765375389,0.0962,31023.0,30992.0,0.13632608]
[1609765375788,3.6704,31028.0,30992.0,0.13632608]
[1609765375988,3.6704,31028.0,30979.0,0.12181]
[1609765376190,3.77942,31028.0,30979.0,0.12181]
[1609765376390,0.10902,31028.0,30979.0,0.12181]
[1609765376591,3.9002,31023.0,30979.0,0.12181]
[1609765376790,0.0974,31022.0,30979.0,0.12181]
[1609765377190,0.0974,31022.0,30971.0,2.0]
[1609765377391,0.13632608,30978.0,30971.0,2.0]
[1609765377590,0.13632608,30978.0,30972.0,0.097]
[1609765377791,0.26910608,30978.0,30972.0,0.097]
[1609765378795,0.26910608,30978.0,30973.0,0.0975]
[1609765379494,0.13632608,30974.0,30973.0,0.0975]
[1609765380096,0.13278,30978.0,30972.0,0.097]
[1609765380596,0.13278,30978.0,30971.0,2.0]
[1609765381596,0.13278,30978.0,30973.0,0.13632608]
[1609765381799,3.9235,31000.0,30973.0,0.13632608]
[1609765382002,3.9235,31000.0,30974.0,0.0953]
[1609765382199,3.9235,31000.0,30971.0,2.0]
[1609765382399,4.02569,31000.0,30971.0,2.0]
[1609765382607,0.0977,30999.0,30971.0,2.0]
[1609765383401,0.10219,31000.0,30971.0,2.0]
[1609765383602,0.13632608,30972.0,30971.0,2.0]
[1609765383800,0.12894,30973.0,30971.0,1.9466]
[1609765385001,0.12894,30973.0,30971.0,1.2639]
[1609765385601,0.13632608,30972.0,30971.0,1.2639]
[1609765386003,0.13632608,30972.0,30971.0,0.1745]
[1609765386204,3.94462608,30972.0,30971.0,0.1745]
[1609765386404,3.94462608,30972.0,30971.0,0.016]
[1609765386604,3.94462608,30972.0,30952.0,0.2512]
[1609765386804,3.94462608,30972.0,30952.0,0.2342]
[1609765387007,3.94462608,30972.0,30943.0,0.0977]
[1609765387205,3.94462608,30972.0,30932.0,4.9206]
[1609765387504,0.13632608,30933.0,30932.0,4.9206]
[1609765387705,0.13632608,30933.0,30930.0,0.13632608]
[1609765387905,0.00062608,30933.0,30930.0,0.13632608]
[1609765388107,0.14292,30957.0,30931.0,0.19949]
[1609765388707,0.14292,30957.0,30931.0,5.43979]
[1609765389511,0.14292,30957.0,30956.0,0.13632608]
[1609765389710,0.12894,30973.0,30956.0,0.13632608]
[1609765389911,0.79210161,31001.0,30956.0,0.13632608]
[1609765390610,0.79210161,31001.0,30956.0,0.23232608]
[1609765390810,0.0964,31000.0,30956.0,0.13632608]
[1609765391012,0.1771,31001.0,30956.0,0.28919608]
[1609765391512,0.1771,31001.0,30968.0,0.13632608]
[1609765392017,0.1771,31001.0,30956.0,0.15287]
[1609765392212,0.32838,31001.0,30956.0,0.15287]
[1609765392411,0.097,31000.0,30956.0,0.15287]
[1609765393413,0.32838,31001.0,30956.0,0.15287]
[1609765393613,0.13632608,30963.0,30959.0,0.13632608]
[1609765394814,0.13632608,30963.0,30956.0,0.15287]
[1609765395216,0.13632608,30963.0,19714.0,0.01074675]
[1609765395414,0.13632608,30963.0,30939.0,5.0249]
[1609765395613,0.12661,30969.0,30958.0,0.13632608]
[1609765397525,0.13632608,30961.0,30958.0,0.13632608]
[1609765398017,0.13632608,30961.0,30949.0,0.15981]
[1609765399621,0.13632608,30961.0,30957.0,0.13632608]
[1609765400525,0.514338,30997.0,30957.0,0.13632608]
[1609765401626,0.514338,30997.0,30966.0,0.13632608]
[1609765401826,0.0971,30996.0,30966.0,0.13632608]
[1609765402027,0.51460746,31000.0,30951.0,4.0031]
[1609765403129,0.51423508,30999.0,30951.0,4.0031]
[1609765403626,0.13632608,30973.0,30972.0,0.13632608]
[1609765403827,0.12567,30973.0,30972.0,0.13632608]
[1609765404529,0.51423508,30999.0,30972.0,0.13632608]
[1609765404729,0.51423508,30999.0,30972.0,0.23432608]
[1609765404931,0.51448941,31000.0,30972.0,0.23432608]
[1609765405129,0.51448941,31000.0,30972.0,0.13632608]
[1609765405632,0.51448941,31000.0,30989.0,0.13632608]
[1609765405830,0.5173117,30998.0,30989.0,0.13632608]
[1609765406429,0.5173117,30998.0,30973.0,0.0977]
[1609765406629,0.5173117,30998.0,30968.0,5.1614]
[1609765407430,0.7682106,31001.0,30968.0,5.1614]
[1609765407630,0.6703106,31001.0,30984.0,0.13632608]
[1609765408431,0.6703106,31001.0,30959.0,0.0966]
[1609765408632,0.0978,31000.0,30949.0,7.64124925]
[1609765408831,0.2749,31000.0,30949.0,7.64124925]
[1609765410234,0.13632608,30953.0,30952.0,2.2801704]
[1609765410835,0.13109,30964.0,30952.0,2.24044432]
[1609765411236,0.13109,30964.0,30952.0,2.14384432]
[1609765411440,0.13109,30964.0,30941.0,0.10948]
[1609765411636,0.13109,30964.0,30941.0,0.20598]
[1609765411835,0.13109,30964.0,30941.0,0.10948]
[1609765412638,0.13109,30964.0,30952.0,0.13632608]
[1609765413237,0.13109,30964.0,30941.0,0.10948]
[1609765414241,0.13109,30964.0,30931.0,2.25362098]
[1609765414440,0.13109,30964.0,30931.0,0.10329]
[1609765414841,0.13632608,30936.0,30935.0,0.13632608]
[1609765415040,0.13632608,30936.0,30932.0,0.2748]
[1609765416240,0.13632608,30936.0,30918.0,2.15022766]
[1609765416639,0.23459608,30936.0,30918.0,2.15022766]
[1609765416840,0.09827,30936.0,30918.0,2.15022766]
[1609765417441,0.09827,30936.0,30915.0,2.150754]
[1609765417641,3.9546,30933.0,30915.0,2.150754]
[1609765418642,3.9546,30933.0,30906.0,0.2836]
[1609765418843,3.9546,30933.0,30909.0,0.13632608]
[1609765419041,0.09827,30936.0,30909.0,0.27913608]
[1609765419641,0.09827,30936.0,30910.0,0.0973]
[1609765419841,0.09827,30936.0,30911.0,0.0974]
[1609765420041,0.09827,30936.0,30909.0,0.27913608]
[1609765420743,0.09827,30936.0,30917.0,0.13632608]
[1609765421845,0.12896,30943.0,30909.0,0.14281]
[1609765422043,0.51359668,30948.0,30909.0,0.14281]
[1609765422245,4.8483,30944.0,30909.0,0.14281]
[1609765422744,0.13632608,30912.0,30911.0,0.13632608]
[1609765422944,0.13632608,30912.0,30909.0,0.14281]
[1609765424247,0.13632608,30912.0,30906.0,0.2836]
[1609765424749,0.13632608,30908.0,30907.0,0.13632608]
[1609765426050,0.10565,30930.0,30907.0,0.13632608]
[1609765426250,0.10565,30930.0,30907.0,0.24511608]
[1609765426850,0.10565,30930.0,30920.0,0.13632608]
[1609765428053,0.51279414,30947.0,30920.0,0.13632608]
[1609765428353,0.20708,30950.0,30920.0,0.13632608]
[1609765428555,0.5479,30945.0,30920.0,0.13632608]
[1609765428753,0.13632608,30921.0,30920.0,0.13632608]
[1609765429657,0.10307,30932.0,30920.0,0.13632608]
[1609765430858,0.13632608,30928.0,30920.0,0.13632608]
[1609765432858,0.10307,30932.0,30925.0,0.13632608]
[1609765433259,0.10307,30932.0,30914.0,0.1103]
[1609765433660,0.10307,30932.0,30907.0,0.10879]
[1609765433860,0.10307,30932.0,30873.0,2.89594293]
[1609765434064,0.5479,30945.0,30881.0,2.12283144]
[1609765434263,0.1084,30933.0,30896.0,4.7531]
[1609765434863,0.1084,30933.0,30923.0,0.13632608]
[1609765436264,0.10918,30950.0,30923.0,0.13632608]
[1609765436464,0.51256885,30951.0,30923.0,0.11547]
[1609765437266,0.51285785,30952.0,30923.0,0.11547]
[1609765437467,0.5505063,30953.0,30928.0,4.2047]
[1609765437666,0.3465063,30953.0,30951.0,0.13632608]
[1609765438066,0.1331063,30953.0,30951.0,0.13632608]
[1609765438267,0.0227063,30953.0,30951.0,0.13632608]
[1609765438468,0.67686721,30959.0,30951.0,0.13632608]
[1609765438667,0.42506721,30959.0,30951.0,0.13632608]
[1609765438868,0.96435591,30981.0,30951.0,0.13632608]
[1609765439068,0.96435591,30981.0,30952.0,0.0968]
[1609765439669,0.96435591,30981.0,30979.0,0.13632608]
[1609765439870,0.13632608,30983.0,30979.0,0.13632608]
[1609765441272,0.13632608,30983.0,30952.0,0.0962]
[1609765441472,0.26961608,30983.0,30943.0,0.0961]
[1609765441671,0.13329,30983.0,30943.0,0.0961]
[1609765441871,0.13329,30983.0,30930.0,2.12603118]
[1609765442073,0.13329,30983.0,30933.0,4.3042]
[1609765442272,0.13329,30983.0,30965.0,0.13632608]
[1609765442473,0.13329,30983.0,30947.0,0.11682]
[1609765443272,0.1771,30982.0,30947.0,0.11682]
[1609765443872,0.1771,30982.0,30933.0,4.3042]
[1609765443873,0.0961,30981.0,30933.0,4.3042]
[1609765444072,0.0961,30981.0,30920.0,2.1280955]
[1609765444273,0.13632608,30934.0,30930.0,0.13632608]
[1609765445275,0.26712608,30934.0,30930.0,0.13632608]
[1609765445475,0.1308,30934.0,30930.0,0.13632608]
[1609765446779,0.1308,30934.0,30907.0,3.644]
[1609765447179,0.1308,30934.0,30900.0,2.13003651]
[1609765447978,0.1308,30934.0,30900.0,2.22803651]
[1609765448179,0.1308,30934.0,30896.0,0.098]
[1609765448180,0.1308,30934.0,30899.0,2.13074098]
[1609765448380,0.13632608,30913.0,30899.0,2.13074098]
[1609765449186,0.13632608,30913.0,30899.0,1.38264098]
[1609765449390,0.09961,30917.0,30899.0,1.38264098]
[1609765449789,0.09961,30917.0,30896.0,0.12786]
[1609765450385,0.13632608,30897.0,30896.0,0.12786]
[1609765450587,0.13632608,30897.0,30883.0,2.3260134]
[1609765450986,0.13632608,30897.0,30867.0,2.32581177]
[1609765451686,0.10268,30899.0,30867.0,2.32581177]
[1609765451887,0.10268,30899.0,30871.0,0.0967]
[1609765452086,0.10268,30899.0,30871.0,0.21556]
[1609765452288,3.7166,30911.0,30898.0,0.13632608]
[1609765452688,0.09961,30917.0,30898.0,0.13632608]
[1609765454088,4.4652,30948.0,30898.0,0.13632608]
[1609765454488,0.13632608,30923.0,30894.0,0.14082]
[1609765454688,0.27575608,30923.0,30894.0,0.14082]
[1609765455693,0.13943,30923.0,30894.0,0.14082]
[1609765456895,0.0957,30922.0,30894.0,0.14082]
[1609765457096,0.13943,30923.0,30877.0,2.32276445]
[1609765457497,0.13943,30923.0,30880.0,0.15899]
[1609765458396,0.13943,30923.0,30896.0,0.13632608]
[1609765459699,0.75230187,30939.0,30896.0,0.13632608]
[1609765460103,0.75268272,30941.0,30896.0,0.13632608]
[1609765460499,0.26608608,30921.0,30918.0,0.13632608]
[1609765460800,0.26608608,30921.0,30885.0,0.0971]
[1609765461000,0.26608608,30921.0,30879.0,0.0977]
[1609765461401,0.26608608,30921.0,30876.0,4.3743]
[1609765462502,0.13632608,30906.0,30904.0,0.13632608]
[1609765462703,0.1447,30906.0,30904.0,0.13632608]
[1609765462901,0.0712,30906.0,30904.0,0.13632608]
[1609765463101,0.12976,30921.0,30904.0,0.13632608]
[1609765463302,0.15252,30907.0,30904.0,0.13632608]
[1609765463801,0.14182,30907.0,30904.0,0.13632608]
[1609765464000,0.14182,30907.0,30905.0,0.098]
[1609765464201,0.12592,30907.0,30904.0,0.13632608]
[1609765464402,0.12976,30921.0,30904.0,0.13632608]
[1609765464601,0.10201,30913.0,30904.0,0.13632608]
[1609765465205,0.02041,30913.0,30904.0,0.23272608]
[1609765465402,0.11617,30921.0,30904.0,0.23272608]
[1609765465603,0.61901471,30944.0,30904.0,0.13632608]
[1609765466204,0.61901471,30944.0,30902.0,0.14271]
[1609765466405,0.76510471,30944.0,30902.0,0.14271]
[1609765466807,0.14609,30944.0,30922.0,0.13632608]
[1609765467306,0.14609,30944.0,30896.0,5.2]
[1609765467506,0.0983,30943.0,30897.0,0.0959]
[1609765468507,5.111,30932.0,30897.0,0.0959]
[1609765468707,5.26187,30932.0,30897.0,0.0959]
[1609765468907,0.13632608,30898.0,30897.0,0.0959]
[1609765469109,0.23748608,30898.0,30893.0,0.13632608]
[1609765469307,0.23268608,30898.0,30893.0,0.13632608]
[1609765469507,0.10116,30898.0,30893.0,0.13632608]
[1609765470107,0.0976,30897.0,30894.0,0.0979]
[1609765470310,0.10116,30898.0,30893.0,0.13632608]
[1609765470808,0.10116,30898.0,30897.0,0.13632608]
[1609765471010,0.51546759,30929.0,30897.0,0.13632608]
[1609765471409,0.096,30928.0,30897.0,0.13632608]
[1609765472209,0.51619169,30934.0,30897.0,0.13632608]
[1609765472711,0.51619169,30934.0,30889.0,0.15653]
[1609765473113,0.51745129,30936.0,30880.0,2.29910253]
[1609765474013,0.51745129,30936.0,30881.0,0.0985]
[1609765474214,0.51413033,30930.0,30880.0,0.15739]
[1609765474414,0.51413033,30930.0,30876.0,2.14454225]
[1609765475214,0.51413033,30930.0,30901.0,0.13632608]
[1609765475416,0.51070114,30929.0,30901.0,0.13632608]
[1609765476216,0.51007713,30926.0,30901.0,0.13632608]
[1609765477218,0.13632608,30902.0,30901.0,0.13632608]
[1609765477421,0.24382608,30902.0,30872.0,2.24073766]
[1609765477821,0.1075,30902.0,30872.0,2.24073766]
[1609765478921,0.1075,30902.0,30872.0,0.0958]
[1609765479322,0.1075,30902.0,30893.0,0.13632608]
[1609765480323,0.1075,30902.0,30872.0,0.0958]
[1609765481324,0.1075,30902.0,30893.0,0.13632608]
[1609765482024,0.1075,30902.0,30872.0,0.0958]
[1609765482624,4.794,30909.0,30871.0,0.11886]
[1609765483025,4.95082,30909.0,30864.0,2.24074068]
[1609765483227,4.95082,30909.0,30884.0,0.13632608]
[1609765483626,4.95082,30909.0,30864.0,2.33684068]
[1609765483826,4.95082,30909.0,30864.0,2.24074068]
[1609765485329,4.95082,30909.0,30882.0,0.13632608]
[1609765485828,4.95082,30909.0,30864.0,0.09704]
[1609765486828,4.95082,30909.0,30864.0,0.19564]
[1609765487231,0.13632608,30872.0,30864.0,0.33196608]
[1609765487631,0.13632608,30872.0,30864.0,0.23336608]
[1609765487830,0.12317,30878.0,30864.0,0.09704]
[1609765488030,0.12317,30878.0,30856.0,0.15966]
[1609765489333,0.13632608,30884.0,30877.0,0.13632608]
[1609765490033,0.01686537,30905.0,30877.0,0.13632608]
[1609765490432,0.01686537,30905.0,30878.0,0.097]
[1609765490835,0.1738004,30909.0,30878.0,0.097]
[1609765491035,0.1738004,30909.0,30878.0,0.24602]
[1609765491233,0.18412648,30909.0,30908.0,0.13632608]
[1609765491438,0.18412648,30909.0,30878.0,0.24602]
[1609765492338,0.16714608,30909.0,30878.0,0.24602]
[1609765492938,0.4547788,30921.0,30878.0,0.24602]
[1609765493139,0.2507788,30921.0,30878.0,0.77912]
[1609765493337,0.60803593,30923.0,30917.0,0.13632608]
[1609765493540,0.44613593,30923.0,30918.0,0.0975]
[1609765493737,0.43635343,30925.0,30918.0,0.0975]
[1609765493938,0.43635343,30925.0,30917.0,0.13632608]
[1609765493939,0.15087,30932.0,30917.0,0.13632608]
[1609765494138,0.69629734,30937.0,30917.0,0.13632608]
[1609765494638,0.59849734,30937.0,30917.0,0.23675608]
[1609765495239,0.59849734,30937.0,30927.0,0.13632608]
[1609765495640,1.09574946,30944.0,30917.0,0.10043]
[1609765495641,0.14609,30944.0,30917.0,0.10043]
[1609765495840,0.11522,30937.0,30918.0,0.0958]
[1609765496042,0.85312808,30950.0,30918.0,0.0958]
[1609765496239,0.12948,30944.0,30918.0,4.418]
[1609765496440,0.78942808,30950.0,30918.0,4.418]
[1609765496641,0.59302808,30950.0,30918.0,4.418]
[1609765497042,0.10052808,30950.0,30918.0,4.418]
[1609765497241,0.10052808,30950.0,30949.0,0.13632608]
[1609765497442,0.10052808,30950.0,30918.0,0.0958]
[1609765497443,0.71198483,30962.0,30918.0,0.0958]
[1609765497641,0.71198483,30962.0,30940.0,0.15991]
[1609765498647,4.5077,30970.0,30940.0,0.15991]
[1609765499243,0.13632608,30952.0,30949.0,0.13632608]
[1609765499843,0.10754,30961.0,30949.0,0.13632608]
[1609765500643,0.10754,30961.0,30940.0,0.15991]
[1609765501248,0.13632608,30941.0,30940.0,0.15991]
[1609765501444,0.14957,30951.0,30940.0,0.15991]
[1609765502244,0.14957,30951.0,30925.0,0.12199]
[1609765503447,0.69837,30951.0,30912.0,3.9129]
[1609765503849,0.14957,30951.0,30909.0,0.13161]
[1609765504046,4.3934,30947.0,30902.0,2.14151402]
[1609765504647,0.1771,30946.0,30902.0,2.14151402]
[1609765504848,0.1771,30946.0,30887.0,4.8438]
[1609765504849,0.1771,30946.0,30898.0,2.14229288]
[1609765505750,0.13632608,30918.0,30917.0,0.13632608]
[1609765507051,0.13081,30924.0,30905.0,0.0957]
[1609765507250,0.13081,30924.0,30905.0,0.12458]
[1609765507650,0.13081,30924.0,30920.0,0.13632608]
[1609765509853,0.12251,30924.0,30920.0,0.13632608]
[1609765510053,0.12251,30924.0,30912.0,0.15425]
[1609765510253,0.10056,30936.0,30919.0,0.11726]
[1609765511154,0.10056,30936.0,30920.0,0.0955]
[1609765511556,0.10056,30936.0,30919.0,0.11726]
[1609765511754,0.10056,30936.0,30935.0,0.13632608]
[1609765511954,0.10056,30936.0,30919.0,0.11726]
[1609765513755,0.10056,30936.0,30935.0,0.13632608]
[1609765515358,4.2108,30950.0,30935.0,0.13632608]
[1609765515559,0.10754,30961.0,30935.0,0.13632608]
[1609765515761,0.13632608,30936.0,30935.0,0.13632608]
[1609765516460,0.13632608,30936.0,30924.0,0.193]
[1609765516864,0.23222608,30936.0,30924.0,0.193]
[1609765517567,0.096,30935.0,30924.0,0.193]
[1609765517766,0.096,30935.0,30932.0,0.13632608]
[1609765517966,0.13897,30940.0,30932.0,0.13632608]
[1609765518668,0.13897,30940.0,30921.0,0.0962]
[1609765519070,0.0967,30939.0,30921.0,0.0962]
[1609765519469,0.03167,30940.0,30922.0,0.0975]
[1609765519670,0.03167,30940.0,30939.0,0.13632608]
[1609765519870,0.03167,30940.0,30939.0,0.23212608]
[1609765520069,0.13632608,30949.0,30939.0,0.13632608]
[1609765520269,0.06889608,30951.0,30939.0,0.13632608]
[1609765520469,0.0954,31002.0,30939.0,0.28481608]
[1609765520669,0.62621067,30960.0,30939.0,0.14849]
[1609765521272,0.62621067,30960.0,30940.0,0.0959]
[1609765521573,0.62812985,30967.0,30940.0,0.0959]
[1609765521774,0.76445593,30967.0,30960.0,0.13632608]
[1609765522172,0.70465593,30967.0,30960.0,0.13632608]
[1609765522976,0.68525593,30967.0,30960.0,0.13632608]
[1609765523178,0.76788607,30977.0,30960.0,0.13632608]
[1609765523376,0.76788607,30977.0,30961.0,0.0959]
[1609765523778,0.13632608,30975.0,30972.0,0.13632608]
[1609765523979,0.69048607,30977.0,30972.0,0.13632608]
[1609765524177,0.47628607,30977.0,30972.0,0.13632608]
[1609765524777,0.26068607,30977.0,30972.0,0.13632608]
[1609765524978,0.15982,30981.0,30972.0,0.13632608]
[1609765524979,0.15982,30981.0,30973.0,0.096]
[1609765525381,0.52450075,30986.0,30973.0,0.096]
[1609765525585,0.35460075,30986.0,30973.0,0.096]
[1609765525783,0.8740514,30993.0,30985.0,0.13632608]
[1609765525982,0.7291514,30993.0,30987.0,0.5275]
[1609765526184,0.97891659,30998.0,30985.0,0.28839608]
[1609765526185,0.65261659,30998.0,30985.0,0.28839608]
[1609765526380,0.98000112,31016.0,30985.0,0.15207]
[1609765526581,0.14861,31013.0,30988.0,4.1435]
[1609765527179,0.14861,31013.0,30989.0,0.0972]
[1609765527781,0.14861,31013.0,31012.0,0.13632608]
[1609765527983,0.81751112,31016.0,31012.0,0.13632608]
[1609765528184,0.13632608,31018.0,31012.0,0.13632608]
[1609765528682,1.23183802,31038.0,31012.0,0.13632608]
[1609765529085,1.23183802,31038.0,31013.0,0.0977]
[1609765529384,1.23183802,31038.0,31012.0,0.13632608]